bitfinex/quotes_ETHUSD_20220215
["timestamp","ask_amount","ask_price","bid_price","bid_amount"]
[1644894306648,1.1898,3029.3,3028.7,0.476]
[1644894306845,1.1898,3029.3,3028.7,0.48310584]
[1644894307097,1.1898,3029.3,3028.9,1.87081586]
[1644894307293,0.8253348,3029.3,3029.0,0.00710584]
[1644894308691,0.8253348,3029.3,3029.0,1.65778584]
[1644894308893,0.0056657,3029.6,3029.1,0.83247584]
[1644894309092,0.0056657,3029.6,3029.2,3.66509993]
[1644894309295,0.01255018,3029.7,3029.3,0.00710584]
[1644894309491,1.40098114,3029.6,3029.3,0.00710584]
[1644894309693,1.40664722,3029.6,3029.4,1.68506954]
[1644894309893,0.00566608,3029.6,3029.4,1.69217538]
[1644894310593,1.66311078,3029.7,3029.4,1.69217538]
[1644894310845,1.40097024,3029.6,3029.5,0.82528]
[1644894311240,1.40097024,3029.6,3029.5,4.01830413]
[1644894311445,0.01821637,3029.7,3029.5,4.01830413]
[1644894311641,0.01821637,3029.7,3029.5,1.65042]
[1644894311844,0.01255018,3029.7,3029.5,1.65042]
[1644894312042,0.01821637,3029.7,3029.5,1.65042]
[1644894312441,0.01821637,3029.7,3029.5,4.86091382]
[1644894312641,0.01821637,3029.7,3029.5,5.86091382]
[1644894312840,0.01821637,3029.7,3029.6,3.20582822]
[1644894313041,0.01255018,3029.7,3029.6,3.20582822]
[1644894313241,0.01255018,3029.7,3029.6,4.20582822]
[1644894314043,0.01255018,3029.7,3029.6,4.20274343]
[1644894314245,0.01255018,3029.7,3029.6,1.0]
[1644894314892,0.01255018,3029.7,3029.5,2.65042]
[1644894315697,0.83781358,3029.7,3029.5,1.0]
[1644894315894,0.83781358,3029.7,3029.5,0.8253]
[1644894317292,0.83781358,3029.7,3029.5,1.8253]
[1644894317497,0.83781358,3029.7,3029.5,0.8253]
[1644894317693,0.83781358,3029.7,3029.5,1.8253]
[1644894319137,0.83781358,3029.7,3029.5,0.8253]
[1644894319338,1.40092679,3029.6,3029.5,0.8253]
[1644894320542,1.40092679,3029.6,3029.5,1.8253]
[1644894320740,1.40092679,3029.6,3029.5,0.8253]
[1644894320940,1.40092679,3029.6,3029.5,1.8253]
[1644894322093,1.40092679,3029.6,3029.5,1.0]
[1644894324192,1.40092679,3029.6,3029.4,0.82534]
[1644894324391,1.40092679,3029.6,3029.3,0.00710584]
[1644894324392,2.22632759,3029.6,3029.3,0.00710584]
[1644894324592,1.40092679,3029.5,3029.3,0.00710584]
[1644894324896,1.40092679,3029.5,3029.1,0.00710584]
[1644894325291,1.40092679,3029.5,3029.4,1.1530606]
[1644894325492,1.16676494,3029.3,3029.2,1.19298623]
[1644894325740,1.74232163,3029.3,3029.2,1.20009207]
[1644894327544,1.74232163,3029.3,3029.2,2.85067207]
[1644894329491,1.74232163,3029.3,3029.2,3.85067207]
[1644894333091,1.74232163,3029.3,3029.2,1.20009207]
[1644894335654,5.24545374,3029.3,3029.2,0.00710584]
[1644894335847,5.24545374,3029.3,3028.7,0.83269584]
[1644894335848,0.8255597,3029.2,3028.7,0.83269584]
[1644894336046,1.40092679,3029.1,3028.7,0.82559]
[1644894336247,1.40092679,3029.1,3028.8,0.00710584]
[1644894337099,2.22640929,3029.1,3028.8,0.00710584]
[1644894337297,1.40092679,3029.0,3028.8,0.83258584]
[1644894337699,1.40092679,3029.0,3028.8,1.65806584]
[1644894338096,2.22638289,3029.0,3028.8,0.83258584]
[1644894338296,1.40092679,3028.9,3028.8,0.83258584]
[1644894339600,1.40092679,3028.9,3028.8,0.00710584]
[1644894339797,1.40092679,3028.9,3028.6,0.00710584]
[1644894339996,2.22651599,3028.9,3028.3,1.01752303]
[1644894340197,1.40092679,3028.8,3028.3,1.01752303]
[1644894340597,1.40092679,3028.8,3028.5,0.82551]
[1644894340843,1.40092679,3028.8,3028.7,1.11282621]
[1644894341048,2.22648869,3028.8,3028.7,1.11282621]
[1644894341246,2.22648869,3028.8,3028.7,1.11993205]
[1644894343943,2.22648869,3028.8,3028.7,0.00710584]
[1644894345793,5.86622481,3028.8,3028.7,0.00710584]
[1644894345998,5.86622481,3028.8,3028.4,0.00710584]
[1644894346192,1.40092679,3028.7,3028.4,0.00710584]
[1644894346392,3.87805219,3028.7,3028.3,0.01041713]
[1644894346592,1.40092679,3028.6,3028.2,0.00710584]
[1644894346992,1.40092679,3028.6,3028.3,0.01041702]
[1644894347393,3.05239599,3028.6,3028.3,0.01041702]
[1644894347594,1.40092679,3028.5,3028.3,0.01041702]
[1644894347794,1.40092679,3028.5,3028.1,0.00710584]
[1644894347993,1.40092679,3028.5,3028.3,0.01041714]
[1644894348243,2.41797007,3028.5,3028.0,0.26635614]
[1644894348441,1.01704328,3028.5,3028.0,1.6513]
[1644894348645,1.84270958,3028.5,3027.8,1.0]
[1644894348941,2.4772588,3028.7,3027.8,1.0]
[1644894348942,1.6514428,3028.4,3027.8,1.0]
[1644894349542,1.6514428,3028.4,3027.4,1.10507726]
[1644894349744,1.6514428,3028.4,3027.8,1.65151]
[1644894349745,0.85922912,3028.2,3027.8,1.65151]
[1644894349943,2.51071962,3028.2,3027.8,1.65151]
[1644894350143,1.6514905,3028.2,3027.8,2.65151]
[1644894350943,1.6514905,3028.2,3027.8,3.47728]
[1644894351144,1.6514905,3028.2,3027.8,1.65151]
[1644894351145,0.8257453,3028.1,3027.8,1.65151]
[1644894352103,0.8257453,3028.2,3027.7,1.11694767]
[1644894352294,0.8257991,3028.1,3027.7,1.11694767]
[1644894352898,0.8257991,3028.1,3027.7,1.12736639]
[1644894353301,0.8257991,3028.1,3027.7,1.95308639]
[1644894353503,0.8257991,3028.1,3027.8,0.82575]
[1644894353697,0.8257991,3028.1,3027.7,1.12736639]
[1644894353897,0.8257991,3028.1,3027.7,1.11694767]
[1644894354098,0.8257991,3028.1,3027.8,0.01041858]
[1644894355397,0.8257991,3028.1,3027.8,0.83617858]
[1644894356150,0.8257991,3028.1,3027.8,0.82576]
[1644894356443,0.8257991,3028.1,3027.8,0.01041858]
[1644894356645,0.8257991,3028.1,3027.8,0.83619858]
[1644894357244,0.8257991,3028.1,3027.8,0.01041858]
[1644894357445,0.8257991,3028.1,3027.5,2.65152]
[1644894357645,0.8257991,3028.1,3027.8,0.01041858]
[1644894358246,0.8257991,3028.1,3027.8,0.83619858]
[1644894358648,0.8257991,3028.1,3027.8,0.82578]
[1644894358847,0.8257991,3028.1,3027.8,0.00871403]
[1644894359800,0.8257991,3028.1,3027.8,1.10756919]
[1644894359998,0.8257991,3028.1,3027.8,0.01042187]
[1644894361002,0.8257991,3028.1,3027.8,0.90873894]
[1644894361202,0.8257991,3028.1,3027.8,0.91916081]
[1644894361799,0.8257991,3028.1,3027.8,1.74493081]
[1644894362200,0.8257991,3028.1,3027.8,1.73450894]
[1644894362602,0.8257991,3028.1,3027.8,1.74493081]
[1644894363554,0.8257991,3028.1,3027.8,1.73450894]
[1644894363752,0.8257991,3028.1,3027.8,1.74493081]
[1644894363944,0.8257991,3028.1,3027.8,1.75193193]
[1644894364748,0.8257991,3028.1,3027.8,1.74151006]
[1644894364947,0.8257991,3028.1,3027.8,1.75193193]
[1644894365946,0.8257991,3028.1,3027.8,1.74151006]
[1644894366151,0.8257991,3028.1,3027.8,1.75193193]
[1644894367001,0.8257991,3028.1,3027.8,0.83277112]
[1644894367301,0.8257991,3028.1,3027.8,0.84319299]
[1644894368100,1.0098874,3028.0,3027.8,0.84319299]
[1644894368301,1.8356286,3028.0,3027.8,0.83277112]
[1644894368499,1.8356286,3028.0,3027.8,0.84319299]
[1644894369502,1.8356286,3028.0,3027.8,0.83277112]
[1644894370507,0.8257412,3028.0,3027.8,0.83277112]
[1644894372744,0.82436867,3028.0,3027.8,0.83277112]
[1644894373246,0.82436867,3028.0,3027.8,1.65847112]
[1644894373446,0.82436867,3028.0,3027.8,2.57242095]
[1644894375493,0.82436867,3028.0,3027.8,1.74672095]
[1644894377495,0.82436867,3028.0,3027.8,2.57237095]
[1644894377901,0.82436867,3028.0,3027.9,1.0]
[1644894378571,0.82436867,3028.0,3027.8,2.85183644]
[1644894378774,0.82436867,3028.0,3027.8,2.74672095]
[1644894379776,0.82436867,3028.0,3027.8,1.83277112]
[1644894386247,1.40151678,3027.9,3027.8,1.83277112]
[1644894386452,2.22724288,3027.9,3027.8,1.83277112]
[1644894389528,3.25621873,3027.9,3027.8,0.00700112]
[1644894392122,2.22724288,3027.9,3027.8,0.00700112]
[1644894393452,2.22566523,3027.9,3027.8,0.00700112]
[1644894394856,2.22566523,3027.9,3027.8,1.00700112]
[1644894397503,2.22566523,3027.9,3027.8,0.00700112]
[1644894397695,2.22566523,3027.9,3027.8,1.00700112]
[1644894397994,2.22566523,3027.9,3027.8,0.00700112]
[1644894405498,2.22566523,3027.9,3027.8,0.03434762]
[1644894410350,2.22566523,3027.9,3027.8,0.03270762]
[1644894410554,2.22566523,3027.9,3027.8,0.02395215]
[1644894420196,2.22566523,3027.9,3027.8,0.00700112]
[1644894421800,1.40151678,3027.9,3027.8,0.00700112]
[1644894422002,23.1238,3028.5,3027.8,19.36700112]
[1644894422003,1.40151678,3028.3,3027.8,19.36700112]
[1644894422301,1.40151678,3028.2,3027.9,20.94111549]
[1644894422499,1.40151678,3028.1,3028.0,0.10511549]
[1644894422700,1.4013573,3028.4,3028.0,0.58111549]
[1644894422899,20.0,3028.5,3028.0,1.476]
[1644894422900,2.2269622,3028.3,3028.0,1.476]
[1644894423100,1.4013573,3028.2,3028.0,2.30144]
[1644894423371,1.4013573,3028.1,3028.0,2.30144]
[1644894423765,1.4013573,3028.4,3028.0,2.30144]
[1644894423964,1.4013573,3028.4,3028.0,3.12706]
[1644894424166,2.2269565,3028.4,3028.1,0.82562]
[1644894424365,1.4013573,3028.3,3028.1,1.82562]
[1644894424768,1.4013573,3028.3,3028.1,0.82562]
[1644894424967,1.4013573,3028.2,3028.1,3.47676]
[1644894425172,20.0,3028.5,3028.2,0.82561]
[1644894425367,1.4013586,3028.4,3028.2,0.82561]
[1644894425772,1.4013586,3028.4,3028.2,1.82561]
[1644894426267,1.4013586,3028.4,3028.2,2.65116]
[1644894426468,1.4013586,3028.4,3028.3,0.82549]
[1644894427900,1.09034603,3028.4,3028.3,0.82549]
[1644894428303,1.08834603,3028.4,3028.3,0.82549]
[1644894436705,1.08834603,3028.4,3028.1,1.83511514]
[1644894436907,1.08834603,3028.4,3027.8,0.00700112]
[1644894437109,4.00011862,3028.4,3028.1,0.00944514]
[1644894437307,2.91177259,3028.4,3028.1,0.00944514]
[1644894437508,0.8257399,3028.4,3028.1,0.00944514]
[1644894437707,1.13708342,3028.3,3028.1,0.00944514]
[1644894438109,1.13708342,3028.3,3027.8,0.00700112]
[1644894438348,1.13708342,3028.3,3028.0,0.00944538]
[1644894438552,1.96273982,3028.3,3028.1,0.82568]
[1644894438750,1.96273982,3028.3,3028.0,0.00944538]
[1644894439153,1.96273982,3028.3,3027.8,0.00700112]
[1644894439550,1.96273982,3028.3,3028.0,0.00944551]
[1644894440450,1.96273982,3028.3,3027.8,0.00700112]
[1644894440653,1.96273982,3028.3,3028.0,0.00944551]
[1644894440851,0.8257011,3028.2,3028.0,0.00944551]
[1644894441052,4.25187906,3028.2,3028.0,0.00944551]
[1644894441255,0.8257011,3028.2,3028.0,0.00944551]
[1644894441655,0.8257011,3028.2,3027.8,0.00700112]
[1644894441853,0.8257011,3028.2,3027.9,0.00944566]
[1644894442102,0.8257321,3028.1,3027.9,0.00944566]
[1644894442900,0.8257321,3028.1,3027.7,3.00700112]
[1644894443200,0.8257321,3028.1,3027.8,0.00944593]
[1644894443801,0.8257321,3028.1,3027.9,0.82571]
[1644894448151,1.4015064,3028.0,3027.9,0.82571]
[1644894467004,4.82331726,3028.0,3027.8,0.82576]
[1644894467303,1.48565361,3027.8,3027.7,2.0]
[1644894467504,6.36153239,3027.8,3027.7,2.0]
[1644894467703,2.88716001,3027.8,3027.7,2.0]
[1644894468101,6.32988628,3027.8,3027.7,2.0]
[1644894468752,2.88716001,3027.8,3027.7,2.0]
[1644894471557,3.56278801,3028.0,3027.7,2.0]
[1644894471756,0.3,3028.0,3027.7,2.0]
[1644894472202,2.4776775,3027.9,3027.7,2.0]
[1644894473604,6.84457554,3027.9,3027.7,2.0]
[1644894473804,3.3035375,3027.9,3027.7,2.0]
[1644894474407,3.59578576,3027.8,3027.7,2.0]
[1644894475311,3.3035375,3027.9,3027.7,2.0]
[1644894475751,0.3,3027.8,3027.7,2.0]
[1644894475951,1.12591,3027.8,3027.7,2.0]
[1644894476751,0.82591,3027.8,3027.7,2.0]
[1644894477254,4.1294275,3027.9,3027.7,2.0]
[1644894478153,4.1294275,3027.9,3026.8,0.82592]
[1644894478154,3.62247644,3027.8,3026.8,0.82592]
[1644894478354,3.62247644,3027.8,3026.7,0.1651]
[1644894478355,0.82593,3027.5,3026.7,0.1651]
[1644894478553,4.54124719,3027.5,3026.6,0.01565136]
[1644894478753,0.82593,3027.5,3026.6,0.01565136]
[1644894478954,3.61032354,3027.4,3026.6,0.01565136]
[1644894479156,1.05497117,3026.9,3026.6,0.01565136]
[1644894479358,1.88103287,3026.9,3026.6,0.01565136]
[1644894480421,1.84371751,3026.9,3026.6,0.17802987]
[1644894481018,0.78874634,3026.9,3026.6,0.17802987]
[1644894481218,0.78874634,3026.9,3026.6,0.16932277]
[1644894481624,0.78874634,3026.9,3026.6,0.17802987]
[1644894482018,0.78874634,3026.9,3026.6,1.00407987]
[1644894482218,0.78874634,3026.9,3026.6,0.17802987]
[1644894482419,0.78874634,3026.9,3026.6,0.16932277]
[1644894482817,0.78874634,3026.9,3026.6,0.17974809]
[1644894483649,0.78874634,3026.9,3026.6,0.16932277]
[1644894483851,0.78874634,3026.9,3026.6,0.17974809]
[1644894483852,1.08874634,3026.9,3026.6,0.17974809]
[1644894484054,2.56474634,3026.9,3026.6,0.17974809]
[1644894484250,0.82621,3026.8,3026.6,0.17974809]
[1644894484450,1.6525119,3026.8,3026.6,0.17974809]
[1644894484852,0.3,3026.7,3026.6,0.16932277]
[1644894485052,1.6525119,3026.8,3026.6,0.16932277]
[1644894485251,1.6525119,3026.8,3026.6,0.20968084]
[1644894485855,0.3,3026.7,3026.6,0.20968084]
[1644894487103,0.43106786,3026.3,3026.1,0.0137688]
[1644894487303,2.1069542,3026.3,3026.1,0.0245944]
[1644894489404,3.62736406,3026.2,3026.1,0.0245944]
[1644894489606,3.62736406,3026.2,3026.0,0.01855574]
[1644894489607,2.1,3026.2,3024.7,0.10518748]
[1644894489803,2.1,3026.2,3024.7,0.11943084]
[1644894489804,2.4794625,3026.0,3024.7,0.11943084]
[1644894490004,3.5852,3026.2,3026.0,0.01042689]
[1644894490403,11.9655,3026.2,3026.0,0.01042689]
[1644894490604,9.8655,3026.2,3026.0,0.01042689]
[1644894490861,9.8655,3026.2,3025.0,1.12920026]
[1644894491064,9.8655,3026.2,3024.6,0.11074748]
[1644894491065,0.8264341,3025.8,3025.1,0.82644]
[1644894491466,0.8264341,3025.8,3024.9,0.01424336]
[1644894492063,0.94199809,3025.7,3025.0,0.96322289]
[1644894492261,0.8264319,3025.6,3025.0,0.96322289]
[1644894492461,0.8264319,3025.6,3025.2,0.00866419]
[1644894493365,0.8264308,3025.5,3025.1,0.82642]
[1644894493962,0.8264308,3025.5,3025.2,0.0068679]
[1644894495200,0.8264308,3025.5,3025.0,0.0068679]
[1644894496902,0.91677375,3025.2,3025.0,0.0068679]
[1644894497407,0.8265187,3025.3,3025.1,0.01041467]
[1644894497408,1.6531487,3025.3,3025.1,0.01041467]
[1644894497607,0.8265187,3025.3,3025.1,0.01041467]
[1644894498258,2.4796701,3025.3,3024.9,0.01424336]
[1644894498456,2.4796701,3025.3,3025.0,0.0102109]
[1644894498657,3.55604525,3025.3,3025.0,0.0102109]
[1644894499255,3.55604525,3025.3,3024.9,0.01424336]
[1644894499655,3.55604525,3025.3,3025.0,0.01021104]
[1644894500560,3.55604525,3025.3,3024.9,0.01424336]
[1644894500756,3.55604525,3025.3,3025.0,0.01021104]
[1644894501757,3.55604525,3025.3,3024.9,0.01424336]
[1644894502012,3.55604525,3025.3,3025.0,0.01010078]
[1644894502916,3.55604525,3025.3,3024.9,0.01424336]
[1644894503312,3.55604525,3025.3,3025.0,0.01010078]
[1644894504112,3.55604525,3025.3,3024.9,0.01424336]
[1644894504512,1.90289385,3025.3,3025.0,0.01010078]
[1644894505316,1.90289385,3025.3,3024.9,0.01424336]
[1644894505513,1.90289385,3025.3,3025.0,0.01011678]
[1644894505753,0.8265187,3025.3,3025.0,0.01011678]
[1644894506556,0.8265187,3025.3,3024.9,0.01424336]
[1644894506755,0.8265187,3025.3,3025.0,0.01011678]
[1644894506955,1.17000321,3025.2,3025.0,0.01698468]
[1644894507355,1.17000321,3025.2,3025.0,0.01011678]
[1644894507755,1.17000321,3025.2,3024.9,0.01424336]
[1644894507957,2.4797475,3025.3,3024.9,0.02436029]
[1644894508158,1.1627,3025.4,3024.9,0.02436029]
[1644894508955,1.1627,3025.4,3024.9,0.01424336]
[1644894509159,1.1627,3025.4,3025.0,0.01011446]
[1644894509357,0.90635166,3025.3,3025.0,0.01698236]
[1644894509807,0.90635166,3025.3,3025.0,0.01011446]
[1644894510213,0.82659,3025.7,3024.9,0.01424336]
[1644894510410,0.00496778,3025.8,3025.0,19.37011446]
[1644894510614,0.83137698,3025.8,3025.1,0.0068679]
[1644894511210,0.84712137,3025.6,3025.1,0.0068679]
[1644894511614,0.8264809,3025.5,3025.3,0.01011361]
[1644894511817,0.8264809,3025.5,3025.3,0.83658361]
[1644894512012,0.8264809,3025.5,3025.3,0.84345151]
[1644894512513,0.8264809,3025.5,3025.3,0.8333379]
[1644894512913,0.8264809,3025.5,3025.4,3.14994708]
[1644894513361,0.00496939,3025.8,3025.3,0.8333379]
[1644894513362,0.8264277,3025.7,3025.3,0.8333379]
[1644894513561,0.00496939,3025.8,3025.5,0.845112]
[1644894513765,1.652794,3026.1,3025.6,0.8332479]
[1644894513961,0.00496956,3025.8,3025.7,0.0068679]
[1644894514160,0.00496956,3025.8,3025.6,0.81294698]
[1644894514966,0.8263776,3025.9,3025.6,0.81294698]
[1644894515163,0.8263776,3025.9,3025.5,0.82643]
[1644894515164,0.83134732,3025.9,3025.5,0.82643]
[1644894515563,0.83134732,3025.9,3025.4,0.01011359]
[1644894516165,0.8263776,3025.9,3025.1,1.65291]
[1644894516364,0.8263776,3025.9,3025.4,0.83657349]
[1644894516365,0.00496945,3025.8,3025.4,0.83657349]
[1644894516564,0.83140195,3025.8,3025.4,0.83657349]
[1644894516764,0.99121972,3025.7,3024.7,3.82224406]
[1644894517011,0.99121972,3025.7,3024.9,19.36]
[1644894517211,0.99121972,3025.7,3025.0,22.86]
[1644894517710,0.99121972,3025.7,3025.1,1.65291]
[1644894518411,1.6530486,3025.6,3025.1,1.65291]
[1644894518811,0.8264696,3025.5,3025.1,1.65291]
[1644894519210,0.8264696,3025.5,3025.1,1.65206772]
[1644894520010,0.8264696,3025.5,3025.1,0.01042098]
[1644894521057,0.8264696,3025.5,3025.1,0.82654]
[1644894521256,0.8264696,3025.5,3025.1,0.83696098]
[1644894522262,0.8264696,3025.5,3025.1,0.82654]
[1644894522457,0.8264696,3025.5,3025.1,0.83696098]
[1644894523457,0.8264696,3025.5,3025.1,0.82654]
[1644894523657,0.8264696,3025.5,3025.1,0.83696098]
[1644894524609,0.8264696,3025.5,3024.8,1.65306]
[1644894524813,0.8266283,3025.3,3025.1,0.01042098]
[1644894525709,0.8266283,3025.3,3024.6,0.00556]
[1644894525910,2.8252565,3025.4,3024.9,0.82658]
[1644894526107,0.8265722,3025.3,3025.0,0.01042126]
[1644894526508,1.09407337,3025.2,3025.0,0.01042126]
[1644894526908,1.09407337,3025.2,3024.6,1.65871]
[1644894527312,0.8265965,3025.1,3024.9,0.01042155]
[1644894528111,0.8265965,3025.1,3024.6,0.00556]
[1644894528364,0.8265965,3025.1,3024.8,0.01042183]
[1644894528963,0.8265965,3025.1,3024.8,0.83702183]
[1644894529164,0.8265234,3025.2,3024.8,0.83702183]
[1644894529369,0.8265234,3025.2,3024.8,0.8266]
[1644894529569,1.172,3025.4,3024.8,0.83702198]
[1644894529765,1.40277325,3025.3,3024.8,0.83702198]
[1644894529968,1.40277325,3025.3,3024.9,0.006834]
[1644894530168,2.22926045,3025.3,3025.0,0.82652]
[1644894530368,0.8264872,3025.3,3025.1,0.006834]
[1644894530672,1.4028137,3025.2,3025.1,0.006834]
[1644894530872,1.4028137,3025.2,3025.0,0.01042141]
[1644894531074,2.34340123,3025.4,3025.0,0.01042141]
[1644894531472,0.8265862,3025.2,3025.0,0.01725541]
[1644894531676,1.40283086,3025.1,3025.0,0.01042141]
[1644894531874,1.40283086,3025.1,3024.8,0.006834]
[1644894532111,1.40283086,3025.1,3024.9,0.01042155]
[1644894532308,2.34340123,3025.4,3024.9,0.01042155]
[1644894532514,1.40283258,3025.3,3024.9,0.01042155]
[1644894532807,0.826549,3025.1,3024.9,0.83697155]
[1644894533008,0.826549,3025.1,3025.0,0.006834]
[1644894533411,2.22939783,3025.1,3025.0,0.006834]
[1644894533609,1.40284883,3025.1,3025.0,0.006834]
[1644894533811,0.82673,3025.0,3024.9,0.01042155]
[1644894534008,2.22957883,3025.0,3024.9,0.01042155]
[1644894534210,1.40284883,3025.0,3024.6,0.00556]
[1644894534609,0.94243242,3024.9,3024.8,0.01042198]
[1644894534809,2.34528125,3024.9,3024.8,0.01042198]
[1644894535509,2.34528125,3024.9,3024.6,0.00556]
[1644894535758,3.17197125,3024.9,3024.7,0.0099484]
[1644894535958,1.40284883,3024.8,3024.7,0.0099484]
[1644894536557,1.40284883,3024.8,3024.6,0.00556]
[1644894536759,3.05636883,3024.8,3024.6,0.00556]
[1644894536958,1.40300157,3024.7,3024.6,0.01550867]
[1644894537757,1.40300157,3024.7,3024.6,0.00556]
[1644894542110,3.8461,3025.2,3024.6,19.36556]
[1644894542311,1.172,3025.4,3024.6,19.36556]
[1644894542312,1.40289059,3025.1,3024.7,23.96522253]
[1644894542610,0.00180454,3025.7,3024.7,23.96522253]
[1644894542611,1.2068,3025.7,3025.0,0.8264]
[1644894542819,1.40155248,3025.6,3025.0,0.93162253]
[1644894543010,1.40155248,3025.6,3025.1,0.006834]
[1644894543256,1.40155248,3025.6,3025.1,0.833234]
[1644894543456,1.40155248,3025.6,3025.2,0.006834]
[1644894543661,2.22796038,3025.6,3025.2,0.006834]
[1644894543861,1.40155248,3025.6,3025.2,0.006834]
[1644894544258,1.40155248,3025.6,3025.2,0.01686536]
[1644894544558,0.8265175,3025.5,3025.2,0.84337536]
[1644894544758,0.8265175,3025.5,3025.2,0.83654136]
[1644894544957,0.8265175,3025.5,3025.3,3.14792742]
[1644894545157,0.8265175,3025.5,3025.3,3.15476142]
[1644894545362,0.8265175,3025.5,3025.3,0.006834]
[1644894545559,0.8265175,3025.5,3025.3,0.8265]
[1644894545763,0.8265175,3025.5,3025.3,0.006834]
[1644894545961,2.3060302,3025.2,3024.9,1.07967692]
[1644894546161,1.4794802,3025.2,3024.9,1.07967692]
[1644894546361,1.4794802,3025.2,3024.9,4.19954096]
[1644894546562,1.4794802,3025.2,3025.1,19.36]
[1644894546765,1.4794802,3025.2,3025.1,19.46522253]
[1644894547010,1.4794802,3025.2,3025.1,0.10522253]
[1644894547208,1.4794802,3025.2,3025.1,3.33894686]
[1644894548613,1.4794802,3025.2,3025.1,4.16535686]
[1644894549309,1.4794802,3025.2,3025.1,4.27056417]
[1644894549710,1.4794802,3025.2,3025.1,23.63056417]
[1644894550856,1.4794802,3025.2,3025.1,23.52535686]
[1644894551163,1.4794802,3025.2,3025.1,23.6305816]
[1644894551360,1.4794802,3025.2,3025.1,23.52535686]
[1644894551555,1.4794802,3025.2,3025.1,23.63058164]
[1644894552362,1.4794802,3025.2,3025.1,23.52535686]
[1644894552557,1.4794802,3025.2,3025.1,23.63058184]
[1644894556107,1.4794802,3025.2,3025.1,23.58058184]
[1644894556307,1.4794802,3025.2,3025.1,4.22058184]
[1644894556516,1.4794802,3025.2,3025.1,4.11535686]
[1644894556706,1.4794802,3025.2,3025.1,4.22058184]
[1644894557116,1.4794802,3025.2,3025.1,4.11535686]
[1644894557710,1.4794802,3025.2,3025.1,4.22058184]
[1644894557907,1.4794802,3025.2,3025.1,4.11535686]
[1644894558579,1.4794802,3025.2,3025.1,4.22058184]
[1644894558780,1.4794802,3025.2,3025.1,4.11535686]
[1644894559177,1.4794802,3025.2,3025.1,0.82641]
[1644894559678,1.4794802,3025.2,3025.1,0.93163498]
[1644894559877,1.4794802,3025.2,3025.1,0.82641]
[1644894561279,1.4794802,3025.2,3025.1,23.33746421]
[1644894561480,1.4794802,3025.2,3025.1,23.44268888]
[1644894562923,2.88244796,3025.2,3025.1,23.44268888]
[1644894563118,5.196,3025.7,3025.2,4.75]
[1644894563326,28.31265612,3027.5,3025.2,4.75]
[1644894563327,0.0060416,3025.5,3025.4,19.36]
[1644894563525,1.40900826,3025.5,3025.4,20.76748898]
[1644894564222,1.40900826,3025.5,3025.4,20.66227]
[1644894564626,1.40296666,3025.5,3025.4,20.66227]
[1644894565322,1.40296666,3025.5,3025.4,1.30227]
[1644894565523,1.40296666,3025.5,3025.4,4.45862313]
[1644894565756,0.00486337,3025.6,3025.4,6.11134313]
[1644894565958,1.40296666,3025.5,3025.4,4.45862313]
[1644894567155,1.40296666,3025.5,3025.4,5.28499313]
[1644894567358,1.40296666,3025.5,3025.4,23.81862313]
[1644894567855,1.40296666,3025.5,3025.4,4.45862313]
[1644894568055,1.40296666,3025.5,3025.4,23.81862313]
[1644894568355,0.00486337,3025.6,3025.4,24.64498313]
[1644894568556,1.40296666,3025.5,3025.4,4.45862313]
[1644894569358,1.40296666,3025.5,3025.4,5.28501313]
[1644894569607,1.40296666,3025.5,3025.4,5.29183813]
[1644894569809,1.40296666,3025.5,3025.4,5.29181813]
[1644894570106,1.40296666,3025.5,3025.4,2.12876]
[1644894570511,0.00574123,3025.6,3025.5,19.36]
[1644894570710,0.00574123,3025.6,3025.5,20.18639]
[1644894570906,1.40869486,3025.6,3025.5,20.18639]
[1644894571107,1.40869486,3025.6,3025.5,0.82639]
[1644894571313,1.40869486,3025.6,3025.5,23.75669693]
[1644894571510,1.40295363,3025.6,3025.5,20.66239]
[1644894571709,1.40295363,3025.6,3025.5,21.48873]
[1644894571908,1.40295363,3025.6,3025.5,20.66239]
[1644894572908,0.00490696,3025.7,3025.5,21.48873]
[1644894573109,1.40295363,3025.6,3025.5,21.48873]
[1644894573354,1.40295363,3025.6,3025.5,20.66239]
[1644894575459,0.00490696,3025.7,3025.5,20.66239]
[1644894575658,1.40295363,3025.6,3025.5,20.66239]
[1644894576463,0.8263249,3026.0,3025.7,19.36]
[1644894576664,0.8263249,3026.0,3025.8,0.82633]
[1644894576665,1.40292341,3025.9,3025.8,0.82633]
[1644894583062,1.40292341,3025.9,3025.8,0.79257185]
[1644894586210,0.00501296,3026.0,3025.8,0.79257185]
[1644894586409,1.40292341,3025.9,3025.8,0.79257185]
[1644894587709,2.25350189,3025.9,3025.8,0.79257185]
[1644894588560,2.25350189,3025.9,3025.8,20.15257185]
[1644894588561,1.40292341,3025.9,3025.8,20.15257185]
[1644894588762,1.40292341,3025.9,3025.8,23.36688989]
[1644894589163,1.40292341,3025.9,3025.8,20.15257185]
[1644894589763,0.00501259,3026.0,3025.8,20.15257185]
[1644894589964,1.40292341,3025.9,3025.8,20.15257185]
[1644894590165,1.40292341,3025.9,3025.8,20.10257185]
[1644894591066,0.00501265,3026.0,3025.8,20.10257185]
[1644894591266,1.40292341,3025.9,3025.8,20.10257185]
[1644894594614,1.40793605,3026.0,3025.8,20.10257185]
[1644894594811,1.40292341,3025.9,3025.8,20.10257185]
[1644894595012,2.03564502,3026.0,3025.8,20.10257185]
[1644894595211,1.40292341,3025.9,3025.8,20.10257185]
[1644894596060,1.40292341,3026.0,3025.8,20.10257185]
[1644894596358,1.40292341,3025.9,3025.8,20.10257185]
[1644894596560,1.40292341,3026.0,3025.8,20.10257185]
[1644894596758,1.40292341,3026.0,3025.8,18.60618236]
[1644894596960,1.40292341,3025.9,3025.8,18.60618236]
[1644894597267,3.29023142,3026.2,3025.9,18.60618236]
[1644894597461,0.43106786,3026.3,3026.1,18.60618236]
[1644894597664,0.43106786,3026.3,3026.2,19.08218236]
[1644894597866,0.28006397,3026.3,3026.2,20.08218236]
[1644894598259,0.28006397,3026.3,3026.2,21.00799185]
[1644894598462,1.2185,3027.2,3026.2,21.83408185]
[1644894598661,8.30644902,3027.3,3026.9,22.30618236]
[1644894598662,0.132408,3027.3,3026.9,22.30618236]
[1644894598863,4.27974284,3027.7,3027.0,23.58218236]
[1644894599064,5.40740166,3027.8,3027.0,20.08218236]
[1644894599065,3.33295512,3027.8,3027.0,20.08218236]
[1644894599261,3.33295512,3027.8,3027.0,26.02918236]
[1644894599511,0.00293088,3027.9,3027.2,18.60618236]
[1644894599713,0.00150582,3027.3,3027.2,18.60618236]
[1644894599916,0.00150582,3027.3,3027.2,21.20782026]
[1644894600112,0.00150582,3027.3,3027.2,0.476]
[1644894600313,3.4419,3028.3,3027.2,0.476]
[1644894600314,0.00293088,3027.8,3027.2,0.476]
[1644894600515,0.00293088,3028.2,3027.2,0.476]